fUSD/lending_fUSD_20240518
["ID","MTS","AMOUNT","RATE_DAILY","PERIOD"]
[327355450,1716012656958,-500.0,0.00043835,30]
[327355451,1716012656969,-500.0,0.00043835,30]
[327355452,1716012656978,-500.0,0.00043835,30]
[327355453,1716012656988,-500.0,0.00043835,30]
[327355454,1716012656999,-500.0,0.00043835,30]
[327355455,1716012657008,-500.0,0.00043835,30]
[327355456,1716012657017,-500.0,0.00043835,30]
[327355457,1716012657025,-500.0,0.00043835,30]
[327355458,1716012657035,-500.0,0.00043835,30]
[327355459,1716012657044,-442.84715716,0.00043835,30]
[327355460,1716012657053,-308.57480746,0.00043835,30]
[327355461,1716012657063,-500.0,0.00043835,30]
[327355462,1716012657072,-500.0,0.00043835,30]
[327355463,1716012657081,-500.0,0.00043835,30]
[327355464,1716012657090,-500.0,0.00043835,30]
[327355465,1716012657099,-500.0,0.00043835,30]
[327355466,1716012657108,-666.677189,0.00043835,14]
[327355467,1716012657117,-500.0,0.00043835,30]
[327355468,1716012657126,-500.0,0.00043835,30]
[327355469,1716012657136,-500.0,0.00043835,30]
[327355470,1716012657145,-500.0,0.00043835,30]
[327355471,1716012657154,-666.677189,0.00043835,14]
[327355472,1716012657163,-500.0,0.00043835,30]
[327355473,1716012657173,-500.0,0.00043835,30]
[327355474,1716012657182,-500.0,0.00043835,30]
[327355475,1716012657191,-576.56688887,0.00043835,30]
[327355476,1716012657201,-500.0,0.00043835,30]
[327355477,1716012657210,-666.677189,0.00043835,14]
[327355478,1716012657219,-458.22696025,0.00043835,30]
[327355479,1716012657229,-500.0,0.00043835,30]
[327355480,1716012657238,-500.0,0.00043835,30]
[327355481,1716012657250,-500.0,0.00043835,30]
[327355482,1716012657259,-506.15633941,0.00043835,30]
[327355483,1716012657268,-666.677189,0.00043835,14]
[327355484,1716012657278,-566.06175854,0.00043835,30]
[327355485,1716012657287,-500.0,0.00043835,30]
[327355486,1716012657296,-500.0,0.00043835,30]
[327355487,1716012657305,-500.0,0.00043835,30]
[327355488,1716012657316,-500.0,0.00043835,30]
[327355489,1716012657326,-500.0,0.00043835,30]
[327355490,1716012657335,-626.69,0.00043835,30]
[327355491,1716012657344,-500.0,0.00043835,30]
[327355492,1716012657355,-500.0,0.00043835,30]
[327355493,1716012657364,-626.69,0.00043835,30]
[327355494,1716012657374,-500.0,0.00043835,30]
[327355495,1716012657383,-500.0,0.00043835,30]
[327355496,1716012657392,-509.13470372,0.00043835,30]
[327355497,1716012657402,-626.69,0.00043835,30]
[327355498,1716012657412,-503.20071972,0.00043835,30]
[327355499,1716012657421,-500.0,0.00043835,30]
[327355500,1716012657430,-500.0,0.00043835,30]
[327355501,1716012657439,-626.69,0.00043835,30]
[327355502,1716012657448,-500.0,0.00043835,30]
[327355503,1716012657457,-213.54794145,0.00043835,30]
[327355504,1716012657465,-500.0,0.00043835,30]
[327355505,1716012657474,-626.69,0.00043835,30]
[327355506,1716012657484,-500.0,0.00043835,30]
[327355507,1716012657492,-500.0,0.00043835,30]
[327355508,1716012657501,-506.11740819,0.00043835,30]
[327355509,1716012657510,-500.0,0.00043835,30]
[327355510,1716012657519,-626.69,0.00043835,30]
[327355511,1716012657529,-410.8441046,0.00043835,30]
[327355512,1716012657538,-626.69,0.00043835,30]
[327355513,1716012657547,-326.54236256,0.00043835,30]
[327355514,1716012657557,-626.69,0.00043835,30]
[327355515,1716012657567,-500.0,0.00043835,30]
[327355516,1716012657578,-508.90635102,0.00043835,30]
[327355517,1716012657588,-500.0,0.00043835,30]
[327355518,1716012657599,-500.0,0.00043835,30]
[327355519,1716012657608,-500.0,0.00043835,30]
[327355520,1716012657617,-500.0,0.00043835,30]
[327355521,1716012657627,-319.15814441,0.00043835,30]
[327355522,1716012657639,-500.0,0.00043835,30]
[327355523,1716012657650,-503.95574243,0.00043835,30]
[327355524,1716012657660,-500.0,0.00043835,30]
[327355525,1716012657670,-500.0,0.00043835,30]
[327355526,1716012657679,-500.0,0.00043835,30]
[327355527,1716012657689,-500.0,0.00043835,30]
[327355528,1716012657699,-549.51960361,0.00043835,30]
[327355529,1716012657708,-500.0,0.00043835,30]
[327355530,1716012657719,-500.0,0.00043835,30]
[327355531,1716012657728,-548.32604112,0.00043835,30]
[327355532,1716012657737,-515.32738749,0.00043835,30]
[327355533,1716012657746,-229.67986643,0.00043835,30]
[327355534,1716012657755,-500.0,0.00043835,30]
[327355535,1716012657765,-500.0,0.00043835,30]
[327355536,1716012657776,-500.0,0.00043835,30]
[327355537,1716012657787,-500.0,0.00043835,30]
[327355538,1716012657796,-500.0,0.00043835,30]
[327355539,1716012657805,-223.57012654,0.00043835,30]
[327355540,1716012657814,-242.33420456,0.00043835,30]
[327355541,1716012657822,-500.0,0.00043835,30]
[327355542,1716012657831,-500.0,0.00043835,30]
[327355543,1716012657842,-446.03467117,0.00043835,30]
[327355544,1716012657852,-500.0,0.00043835,30]
[327355545,1716012657861,-527.65901384,0.00043835,30]
[327355546,1716012657872,-500.0,0.00043835,30]
[327355547,1716012657881,-500.0,0.00043835,30]
[327355548,1716012657891,-500.0,0.00043835,30]
[327355549,1716012657900,-1124.78,0.00043835,30]
[327355550,1716012657909,-500.0,0.00043835,30]
[327355551,1716012657918,-500.0,0.00043835,30]
[327355552,1716012657927,-1124.78,0.00043835,30]
[327355553,1716012657936,-1124.78,0.00043835,30]
[327355554,1716012657946,-637.37382785,0.00043835,30]
[327355555,1716012657956,-1124.78,0.00043835,30]
[327355556,1716012657965,-582.06222327,0.00043835,30]
[327355557,1716012657974,-1124.78,0.00043835,30]
[327355558,1716012657983,-1124.78,0.00043835,30]
[327355559,1716012657992,-500.0,0.00043835,30]
[327355560,1716012658001,-150.38664071,0.00043835,30]
[327355561,1716012658010,-1124.78,0.00043835,30]
[327355562,1716012658020,-483.85821629,0.00043835,30]
[327355563,1716012658032,-500.0,0.00043835,30]
[327355564,1716012658122,-500.0,0.00043835,30]
[327355565,1716012658131,-1124.78,0.00043835,30]
[327355566,1716012658140,-524.74120942,0.00043835,30]
[327355567,1716012658151,-500.0,0.00043835,30]
[327355568,1716012658161,-1124.78,0.00043835,30]
[327355569,1716012658172,-500.0,0.00043835,30]
[327355570,1716012658183,-500.0,0.00043835,30]
[327355571,1716012658192,-500.0,0.00043835,30]
[327355572,1716012658202,-1124.78,0.00043835,30]
[327355573,1716012658212,-591.25484576,0.00043835,30]
[327355574,1716012658221,-500.0,0.00043835,30]
[327355575,1716012658231,-304.90683014,0.00043835,30]
[327355576,1716012658241,-1124.78,0.00043835,30]
[327355577,1716012658250,-500.0,0.00043835,30]
[327355578,1716012658259,-1124.78,0.00043835,30]
[327355579,1716012658269,-1124.78,0.00043835,30]
[327355580,1716012658279,-500.0,0.00043835,30]
[327355581,1716012658288,-500.0,0.00043835,30]
[327355582,1716012658297,-500.0,0.00043835,21]
[327355583,1716012658306,-500.0,0.00043835,30]
[327355584,1716012658320,-505.99414354,0.00043835,30]
[327355585,1716012658329,-500.0,0.00043835,21]
[327355586,1716012658338,-500.0,0.00043835,21]
[327355587,1716012658347,-500.0,0.00043835,21]
[327355588,1716012658358,-550.22912792,0.00043835,30]
[327355589,1716012658367,-500.0,0.00043835,21]
[327355590,1716012658377,-500.0,0.00043835,30]
[327355591,1716012658386,-500.0,0.00043835,30]
[327355592,1716012658399,-500.0,0.00043835,30]
[327355593,1716012658409,-500.0,0.00043835,30]
[327355594,1716012658418,-500.0,0.00043835,30]
[327355595,1716012658428,-514.96699202,0.00043835,30]
[327355596,1716012658438,-228.30732962,0.00043835,30]
[327355597,1716012658447,-500.0,0.00043835,30]
[327355598,1716012658457,-500.0,0.00043835,30]
[327355599,1716012658467,-500.0,0.00043835,30]
[327355600,1716012658476,-500.0,0.00043835,30]
[327355601,1716012658485,-500.0,0.00043835,30]
[327355602,1716012658496,-476.94927956,0.00043835,30]
[327355603,1716012658506,-565.9581217,0.00043835,30]
[327355604,1716012658515,-500.0,0.00043835,30]
[327355605,1716012658524,-508.76621187,0.00043835,30]
[327355606,1716012658533,-500.0,0.00043835,30]
[327355607,1716012658542,-500.0,0.00043835,30]
[327355608,1716012658551,-500.0,0.00043835,30]
[327355609,1716012658561,-500.0,0.00043835,30]
[327355610,1716012658570,-447.06328614,0.00043835,30]
[327355611,1716012658579,-500.0,0.00043835,30]
[327355612,1716012658588,-507.51056733,0.00043835,30]
[327355613,1716012658597,-500.0,0.00043835,30]
[327355614,1716012658607,-500.0,0.00043835,30]
[327355615,1716012658616,-530.76569336,0.00043835,30]
[327355616,1716012658625,-500.0,0.00043835,30]
[327355617,1716012658634,-500.0,0.00043835,30]
[327355618,1716012658643,-570.90368438,0.00043835,30]
[327355619,1716012658652,-500.0,0.00043835,30]
[327355620,1716012658662,-500.0,0.00043835,30]
[327355621,1716012658671,-500.0,0.00043835,30]
[327355622,1716012658680,-500.0,0.00043835,30]
[327355623,1716012658689,-374.66157969,0.00043835,30]
[327355624,1716012658698,-500.0,0.00043835,30]
[327355625,1716012658707,-500.0,0.00043835,30]
[327355626,1716012658717,-500.0,0.00043835,30]
[327355627,1716012658726,-500.0,0.00043835,30]
[327355628,1716012658735,-169.618259,0.00043835,14]
[327355629,1716012658744,-500.0,0.00043835,30]
[327355630,1716012658753,-517.80088133,0.00043835,30]
[327355631,1716012658762,-500.0,0.00043835,30]
[327355632,1716012658771,-500.0,0.00043835,30]
[327355633,1716012658780,-194.83813504,0.00043835,30]
[327355634,1716012658790,-500.0,0.00043835,30]
[327355635,1716012658799,-500.0,0.00043835,30]
[327355636,1716012658808,-500.0,0.00043835,30]
[327355637,1716012658816,-500.0,0.00043835,30]
[327355638,1716012658825,-580.83228716,0.00043835,30]
[327355639,1716012658835,-500.0,0.00043835,30]
[327355640,1716012658844,-500.0,0.00043835,30]
[327355641,1716012658853,-500.0,0.00043835,30]
[327355642,1716012658862,-500.0,0.00043835,30]
[327355643,1716012658871,-500.0,0.00043835,30]
[327355644,1716012658881,-176.12021261,0.00043835,30]
[327355645,1716012658890,-1026.83,0.00043835,30]
[327355646,1716012658899,-1026.83,0.00043835,30]
[327355647,1716012658908,-1026.83,0.00043835,30]
[327355648,1716012658917,-1026.83,0.00043835,30]
[327355649,1716012658926,-1026.83,0.00043835,30]
[327355650,1716012658935,-1026.83,0.00043835,30]
[327355651,1716012658944,-1026.83,0.00043835,30]
[327355652,1716012658954,-500.0,0.00043835,30]
[327355653,1716012658963,-1026.83,0.00043835,30]
[327355654,1716012658972,-294.37451916,0.00043835,30]
[327355655,1716012658982,-1026.83,0.00043835,30]
[327355656,1716012658991,-500.0,0.00043835,30]
[327355657,1716012659001,-1026.83,0.00043835,30]
[327355658,1716012659010,-500.0,0.00043835,30]
[327355659,1716012659019,-1026.83,0.00043835,30]
[327355660,1716012659028,-500.0,0.00043835,30]
[327355661,1716012659037,-1026.83,0.00043835,30]
[327355662,1716012659046,-500.0,0.00043835,30]
[327355663,1716012659055,-1026.83,0.00043835,30]
[327355664,1716012659064,-500.0,0.00043835,30]
[327355665,1716012659074,-500.0,0.00043835,30]
[327355666,1716012659083,-500.0,0.00043835,30]
[327355667,1716012659092,-500.0,0.00043835,30]
[327355668,1716012659102,-500.0,0.00043835,30]
[327355669,1716012659111,-500.0,0.00043835,30]
[327355670,1716012659120,-500.0,0.00043835,30]
[327355671,1716012659130,-500.0,0.00043835,30]
[327355672,1716012659139,-500.0,0.00043835,30]
[327355673,1716012659148,-507.66602515,0.00043835,30]
[327355674,1716012659157,-500.0,0.00043835,30]
[327355675,1716012659166,-500.0,0.00043835,30]
[327355676,1716012659176,-500.0,0.00043835,30]
[327355677,1716012659185,-380.61937487,0.00043835,30]
[327355678,1716012659195,-566.45219853,0.00043835,30]
[327355679,1716012659204,-500.0,0.00043835,30]
[327355680,1716012659214,-500.0,0.00043835,30]
[327355681,1716012659223,-500.0,0.00043835,30]
[327355682,1716012659233,-500.0,0.00043835,30]
[327355683,1716012659243,-500.0,0.00043835,30]
[327355684,1716012659252,-500.0,0.00043835,30]
[327355685,1716012659262,-241.36501559,0.00043835,30]
[327355686,1716012659271,-524.44228885,0.00043835,30]
[327355687,1716012659281,-500.0,0.00043835,30]
[327355688,1716012659291,-502.40270489,0.00043835,30]
[327355689,1716012659299,-524.44671853,0.00043835,30]
[327355690,1716012659309,-500.0,0.00043835,30]
[327355691,1716012659324,-500.0,0.00043835,30]
[327355692,1716012659332,-500.0,0.00043835,30]
[327355693,1716012659342,-500.0,0.00043835,30]
[327355694,1716012659351,-500.0,0.00043835,30]
[327355695,1716012659363,-500.0,0.00043835,30]
[327355696,1716012659372,-506.4949899,0.00043835,30]
[327355697,1716012659382,-500.0,0.00043835,30]
[327355698,1716012659392,-166.59810097,0.00043835,30]
[327355699,1716012659402,-163.94737483,0.00043835,30]
[327355700,1716012659412,-500.0,0.00043835,30]
[327355701,1716012659421,-500.0,0.00043835,30]
[327355702,1716012659431,-500.0,0.00043835,30]
[327355703,1716012659441,-500.0,0.00043835,30]
[327355704,1716012659450,-500.0,0.00043835,30]
[327355705,1716012659459,-503.59614027,0.00043835,30]
[327355706,1716012659468,-500.0,0.00043835,30]
[327355707,1716012659478,-513.24522793,0.00043835,30]
[327355708,1716012659488,-218.4106465,0.00043835,30]
[327355709,1716012659497,-506.660799,0.00043835,30]
[327355710,1716012659507,-500.0,0.00043835,30]
[327355711,1716012659516,-500.0,0.00043835,30]
[327355712,1716012659525,-500.0,0.00043835,30]
[327355713,1716012659535,-500.0,0.00043835,30]
[327355714,1716012659544,-526.4796293,0.00043835,30]
[327355715,1716012659553,-500.0,0.00043835,30]
[327355716,1716012659562,-500.0,0.00043835,30]
[327355717,1716012659571,-500.0,0.00043835,30]
[327355718,1716012659580,-500.0,0.00043835,30]
[327355719,1716012659589,-500.0,0.00043835,30]
[327355720,1716012659599,-527.08990254,0.00043835,30]
[327355721,1716012659608,-539.40040855,0.00043835,30]
[327355722,1716012659617,-500.0,0.00043835,30]
[327355723,1716012659626,-500.0,0.00043835,30]
[327355724,1716012659635,-500.0,0.00043835,30]
[327355725,1716012659644,-524.05857985,0.00043835,30]
[327355726,1716012659654,-500.0,0.00043835,30]
[327355727,1716012659663,-500.0,0.00043835,30]
[327355728,1716012659672,-532.87545619,0.00043835,30]
[327355729,1716012659681,-500.0,0.00043835,30]
[327355730,1716012659690,-500.0,0.00043835,30]
[327355731,1716012659698,-500.0,0.00043835,30]
[327355732,1716012659707,-500.0,0.00043835,30]
[327355733,1716012659716,-500.0,0.00043835,30]
[327355734,1716012659725,-500.0,0.00043835,30]
[327355735,1716012659734,-518.74922167,0.00043835,30]
[327355736,1716012659749,-500.0,0.00043835,30]
[327355737,1716012659830,-500.0,0.00043835,30]
[327355738,1716012659846,-500.0,0.00043835,30]
[327355739,1716012659856,-484.52094691,0.00043835,30]
[327355740,1716012659865,-500.0,0.00043835,30]
[327355741,1716012659876,-542.08251856,0.00043835,30]
[327355742,1716012659886,-500.0,0.00043835,30]
[327355743,1716012659895,-500.0,0.00043835,30]
[327355744,1716012659904,-500.0,0.00043835,30]
[327355745,1716012659913,-500.0,0.00043835,30]
[327355746,1716012659922,-510.706021,0.00043835,30]
[327355747,1716012659931,-500.0,0.00043835,30]
[327355748,1716012659941,-500.0,0.00043835,30]
[327355749,1716012659950,-500.0,0.00043835,30]
[327355750,1716012659960,-500.0,0.00043835,30]
[327355751,1716012659969,-500.0,0.00043835,30]
[327355752,1716012659979,-500.0,0.00043835,30]
[327355753,1716012659989,-500.0,0.00043835,30]
[327355754,1716012659999,-500.0,0.00043835,30]
[327355755,1716012660007,-500.0,0.00043835,30]
[327355756,1716012660016,-538.13489244,0.00043835,30]
[327355757,1716012660025,-245.65437203,0.00043835,30]
[327355758,1716012660035,-500.0,0.00043835,30]
[327355759,1716012660044,-500.0,0.00043835,30]
[327355760,1716012660054,-500.0,0.00043835,30]
[327355761,1716012660063,-500.0,0.00043835,30]
[327355762,1716012660072,-500.0,0.00043835,30]
[327355763,1716012660081,-500.0,0.00043835,30]
[327355764,1716012660090,-502.53605247,0.00043835,30]
[327355765,1716012660100,-500.0,0.00043835,30]
[327355766,1716012660109,-500.0,0.00043835,30]
[327355767,1716012660119,-500.0,0.00043835,30]
[327355768,1716012660128,-224.03074127,0.00043835,30]
[327355769,1716012660137,-500.0,0.00043835,30]
[327355770,1716012660146,-500.0,0.00043835,30]
[327355771,1716012660155,-500.0,0.00043835,30]
[327355772,1716012660164,-500.0,0.00043835,30]
[327355773,1716012660174,-500.0,0.00043835,30]
[327355774,1716012660183,-500.0,0.00043835,30]
[327355775,1716012660192,-500.0,0.00043835,30]
[327355776,1716012660203,-500.0,0.00043835,30]
[327355777,1716012660212,-500.0,0.00043835,30]
[327355778,1716012660221,-500.0,0.00043835,30]
[327355779,1716012660231,-500.0,0.00043835,30]
[327355780,1716012660240,-500.0,0.00043835,30]
[327355781,1716012660251,-500.0,0.00043835,30]
[327355782,1716012660260,-500.0,0.00043835,30]
[327355783,1716012660269,-616.28833755,0.00043835,30]
[327355784,1716012660278,-500.0,0.00043835,30]
[327355785,1716012660288,-500.0,0.00043835,30]
[327355786,1716012660297,-500.0,0.00043835,30]
[327355787,1716012660306,-500.0,0.00043835,30]
[327355788,1716012660320,-500.0,0.00043835,30]
[327355789,1716012660329,-500.0,0.00043835,30]
[327355790,1716012660338,-576.6564423,0.00043835,30]
[327355791,1716012660347,-500.0,0.00043835,30]
[327355792,1716012660358,-500.0,0.00043835,30]
[327355793,1716012660367,-359.64640878,0.00043835,2]
[327355794,1716012660376,-500.0,0.00043835,30]
[327355795,1716012660387,-500.0,0.00043835,30]
[327355796,1716012660396,-500.0,0.00043835,30]
[327355797,1716012660406,-500.0,0.00043835,30]
[327355798,1716012660415,-500.0,0.00043835,30]
[327355799,1716012660424,-389.56293006,0.00043835,30]
[327355800,1716012660434,-500.0,0.00043835,30]
[327355801,1716012660442,-500.0,0.00043835,30]
[327355802,1716012660451,-500.0,0.00043835,30]
[327355803,1716012660461,-500.0,0.00043835,30]
[327355804,1716012660470,-500.0,0.00043835,30]
[327355805,1716012660480,-500.0,0.00043835,30]
[327355806,1716012660489,-500.0,0.00043835,30]
[327355807,1716012660499,-500.0,0.00043835,30]
[327355808,1716012660509,-500.0,0.00043835,30]
[327355809,1716012660519,-500.0,0.00043835,30]
[327355810,1716012660528,-197.61528877,0.00043835,2]
[327355811,1716012660538,-265.43400259,0.00043835,30]
[327355812,1716012660547,-500.0,0.00043835,30]
[327355813,1716012660557,-456.8647216,0.00043835,30]
[327355814,1716012660566,-500.0,0.00043835,30]
[327355815,1716012660575,-500.0,0.00043835,30]
[327355816,1716012660584,-500.0,0.00043835,30]
[327355817,1716012660594,-500.0,0.00043835,30]
[327355818,1716012660603,-500.0,0.00043835,30]
[327355819,1716012660612,-500.0,0.00043835,30]
[327355820,1716012660621,-500.0,0.00043835,30]
[327355821,1716012660631,-500.0,0.00043835,30]
[327355822,1716012660640,-500.0,0.00043835,30]
[327355823,1716012660649,-247.63987622,0.00043835,30]
[327355824,1716012660659,-500.0,0.00043835,30]
[327355825,1716012660668,-200.0,0.00043836,25]
[327355826,1716012660678,-1000.0,0.00043836,50]
[327355827,1716012660688,-213.0,0.00043836,30]
[327355828,1716012660698,-69151.6936678,0.00043838,2]
[327355829,1716012660708,-151.0,0.00043838,14]
[327355830,1716012660717,-191.802318,0.00043838,14]
[327355831,1716012660726,-191.802318,0.00043838,14]
[327355832,1716012660736,-151.776498,0.00043838,14]
[327355833,1716012660747,-151.776498,0.00043838,14]
[327355834,1716012660756,-666.677189,0.00043838,14]
[327355835,1716012660766,-666.677189,0.00043838,14]
[327355836,1716012660776,-3580.7222475,0.00043838,2]
[327355837,1716012660787,-5518.3539789,0.00043838,2]
[327355838,1716012660797,-3215.10754267,0.00043839,18]
[327355839,1716012660808,-150.0,0.00043842,2]
[327355840,1716012660818,-150.0,0.00043854,2]
[327355841,1716012660827,-500.0,0.00043868,30]
[327355842,1716012660837,-10000.0,0.000439,120]
[327355843,1716012660847,-150.0,0.00043917,2]
[327355844,1716012660856,-531.52,0.00043919,30]
[327355845,1716012660866,-2126.82,0.00043919,30]
[327355846,1716012660876,-500.0,0.00043919,30]
[327355847,1716012660886,-997.58,0.00043919,30]
[327355848,1716012660896,-2565.86,0.00043919,30]
[327355849,1716012660906,-626.69,0.00043919,30]
[327355850,1716012660915,-500.0,0.00043919,30]
[327355851,1716012660924,-13117.19191425,0.0004392,60]
[327355852,1716012660934,-3215.10754267,0.00043945,18]
[327355853,1716012660944,-157.051815,0.00043948,50]
[327355854,1716012660953,-150.0,0.00043998,2]
[327355855,1716012660963,-500.0,0.00044,120]
[327355856,1716012660972,-1157.748186,0.00044,44]
[327355857,1716012660981,-150.0,0.00044,12]
[327355858,1716012660991,-151.0,0.00044027,14]
[327355859,1716012661002,-151.0,0.00044027,14]
[327355860,1716012661011,-151.0,0.00044027,14]
[327355861,1716012661020,-628.051815,0.00044048,50]
[327355862,1716012661032,-3215.10754267,0.00044051,19]
[327355863,1716012661042,-415.34,0.00044055,2]
[327355864,1716012661053,-415.34,0.00044055,2]
[327355865,1716012661062,-1738.56,0.00044055,2]
[327355866,1716012661072,-415.34,0.00044055,2]
[327355867,1716012661081,-200.0,0.0004406,120]
[327355868,1716012661090,-1000.0,0.0004406,120]
[327355869,1716012661099,-797.55205176,0.00044103,120]
[327355870,1716012661108,-2200.0,0.00044142,30]
[327355871,1716012661119,-3200.0,0.00044142,30]
[327355872,1716012661129,-931.99535304,0.00044142,30]
[327355873,1716012661139,-157.051815,0.00044148,56]
[327355874,1716012661149,-628.051815,0.00044148,60]
[327355875,1716012661158,-200.0,0.00044152,120]
[327355876,1716012661168,-3215.10754267,0.00044157,19]
[327355877,1716012661177,-3597.45,0.00044164,30]
[327355878,1716012661187,-310.83717215,0.00044164,30]
[327355879,1716012661196,-500.0,0.00044164,30]
[327355880,1716012661208,-500.0,0.00044164,30]
[327355881,1716012661217,-500.0,0.00044164,30]
[327355882,1716012661226,-215.0,0.0004419,30]
[327355883,1716012661236,-150.0,0.00044192,2]
[327355884,1716012661247,-150.62,0.00044192,2]
[327355885,1716012661256,-523.82,0.00044192,2]
[327355886,1716012661265,-164.24,0.00044192,2]
[327355887,1716012661275,-150.0,0.00044192,2]
[327355888,1716012661284,-150.0,0.00044192,2]
[327355889,1716012661293,-150.0,0.00044192,2]
[327355890,1716012661302,-523.82,0.00044192,2]
[327355891,1716012661313,-523.82,0.00044192,2]
[327355892,1716012661325,-150.0,0.00044192,2]
[327355893,1716012661335,-150.0,0.00044192,2]
[327355894,1716012661344,-523.82,0.00044192,2]
[327355895,1716012661354,-150.0,0.00044192,2]
[327355896,1716012661364,-150.0,0.00044192,2]
[327355897,1716012661452,-351.66,0.00044192,2]
[327355898,1716012661462,-354.68,0.00044192,2]
[327355899,1716012661473,-351.66,0.00044192,2]
[327355900,1716012661483,-300.37,0.00044192,2]
[327355901,1716012661494,-420.61,0.00044192,2]
[327355902,1716012661504,-426.99,0.00044192,2]
[327355903,1716012661513,-150.0,0.00044192,2]
[327355904,1716012661524,-351.66,0.00044192,2]
[327355905,1716012661533,-150.0,0.00044192,2]
[327355906,1716012661542,-150.0,0.00044192,2]
[327355907,1716012661551,-351.66,0.00044192,2]
[327355908,1716012661561,-1065.32,0.00044192,2]
[327355909,1716012661571,-420.56,0.00044192,2]
[327355910,1716012661581,-300.35,0.00044192,2]
[327355911,1716012661591,-301.58,0.00044192,2]
[327355912,1716012661600,-351.66,0.00044192,2]
[327355913,1716012661610,-150.0,0.00044192,2]
[327355914,1716012661619,-163.39,0.00044192,2]
[327355915,1716012661629,-150.0,0.00044192,2]
[327355916,1716012661641,-628.051815,0.00044248,54]
[327355917,1716012661651,-150.0,0.00044252,2]
[327355918,1716012661662,-3215.10754267,0.00044263,19]
[327355919,1716012661672,-200.0,0.00044273,7]
[327355920,1716012661682,-191.63016398,0.00044318,2]
[327355921,1716012661693,-494.90005298,0.00044318,2]
[327355922,1716012661703,-157.051815,0.00044348,62]
[327355923,1716012661714,-150.0,0.00044351,2]
[327355924,1716012661723,-150.0,0.00044368,2]
[327355925,1716012661732,-3215.10754267,0.0004437,19]
[327355926,1716012661744,-150.0,0.00044405,2]
[327355927,1716012661754,-500.0,0.00044416,30]
[327355928,1716012661763,-628.051815,0.00044448,62]
[327355929,1716012661772,-150.72,0.00044466,2]
[327355930,1716012661781,-3215.10754267,0.00044476,19]
[327355931,1716012661790,-150.0,0.00044483,2]
[327355932,1716012661799,-156.51297019,0.000445,30]
[327355933,1716012661808,-1425.54,0.000445,30]
[327355934,1716012661817,-461.02839071,0.000445,30]
[327355935,1716012661827,-150.0,0.000445,12]
[327355936,1716012661836,-150.0,0.00044523,2]
[327355937,1716012661845,-5000.0,0.0004453,4]
[327355938,1716012661854,-157.051815,0.00044548,64]
[327355939,1716012661863,-3215.10754267,0.00044582,19]
[327355940,1716012661873,-150.38,0.00044603,2]
[327355941,1716012661882,-150.0,0.00044603,2]
[327355942,1716012661891,-150.0,0.00044603,2]
[327355943,1716012661900,-500.0,0.00044623,30]
[327355944,1716012661909,-768.0,0.00044638,28]
[327355945,1716012661918,-3215.10754267,0.00044688,19]
[327355946,1716012661927,-176.086158,0.00044688,14]
[327355947,1716012661936,-176.086158,0.00044688,14]
[327355948,1716012661945,-160.54,0.00044689,120]
[327355949,1716012661954,-2200.0,0.0004469,30]